lending/lending_fUSD_20260110
["ID","MTS","AMOUNT","RATE_DAILY","PERIOD"]
[401163465,1768003290720,150.0,0.00019599,120]
[401163466,1768003342811,160.0,0.00012491,7]
[401163467,1768003384151,702.7,0.00012491,7]
[401163471,1768003531231,150.0,0.00021473,120]
[401163472,1768003711201,150.0,0.0002228,120]
[401163473,1768003715699,500.0,0.00014,7]
[401163477,1768003831761,-178.11,0.00010992,2]
[401163478,1768003831771,-250.0,0.00012091,2]
[401163479,1768003831781,-147.4776787,0.00013658,2]
[401163480,1768003831794,-30.6323213,0.00013658,2]
[401163481,1768003831804,-166.66,0.00014267,2]
[401163482,1768003831814,-161.78,0.0001431,2]
[401163483,1768003831823,-187.47264895,0.00014412,2]
[401163484,1768003831835,-562.249999,0.00014412,2]
[401163485,1768003831846,-514.33844558,0.00014412,2]
[401163486,1768003831917,-584.79955105,0.00014412,2]
[401163487,1768003831929,-1391.13935542,0.00014412,2]
[401163488,1768003831939,-173.26,0.00014544,2]
[401163489,1768003831949,-500.0,0.0001456,2]
[401163490,1768003831959,-166.66,0.00014568,2]
[401163491,1768003831969,-241.76,0.00014741,2]
[401163492,1768003831978,-166.66,0.00014868,2]
[401163493,1768003831988,-245.36,0.00015059,2]
[401163494,1768003831998,-1200.0,0.00015067,2]
[401163495,1768003832008,-500.0,0.00015068,2]
[401163496,1768003832017,-166.66,0.00015168,2]
[401163497,1768003832027,-185.46,0.00015202,2]
[401163498,1768003832036,-150.0,0.00015247,2]
[401163499,1768003832046,-173.26,0.00015352,2]
[401163500,1768003832056,-300.0,0.00015418,2]
[401163501,1768003832065,-150.0,0.00015419,2]
[401163503,1768003832075,-150.0,0.00015419,2]
[401163505,1768003832084,-150.0,0.00015419,2]
[401163507,1768003832093,-150.0,0.00015419,2]
[401163509,1768003832103,-150.0,0.00015419,2]
[401163510,1768003832112,-150.0,0.00015419,2]
[401163512,1768003832122,-150.0,0.0001542,2]
[401163514,1768003832131,-150.0,0.0001542,2]
[401163515,1768003832142,-150.0,0.0001542,2]
[401163516,1768003832151,-341.94059004,0.00015456,2]
[401163517,1768003832163,-158.05940996,0.00015456,2]
[401163518,1768003832173,-780.53253483,0.00015465,2]
[401163519,1768003832183,-166.66,0.00015469,2]
[401163520,1768003832193,-150.0,0.00015474,2]
[401163521,1768003832202,-150.0,0.00015474,2]
[401163522,1768003832212,-150.0,0.00015474,2]
[401163523,1768003832222,-150.0,0.00015474,2]
[401163524,1768003832231,-150.0,0.00015474,2]
[401163525,1768003832240,-150.0,0.00015475,2]
[401163526,1768003832250,-150.0,0.00015475,2]
[401163527,1768003832259,-241.76,0.00015478,2]
[401163528,1768003832269,-500.0,0.00015495,2]
[401163529,1768003832278,-150.0,0.00015495,2]
[401163530,1768003832288,-150.0,0.00015495,2]
[401163531,1768003832297,-150.0,0.00015495,2]
[401163532,1768003832307,-603.0,0.00015495,2]
[401163533,1768003832317,-150.0,0.00015495,2]
[401163534,1768003832327,-180.5289711,0.00015529,2]
[401163535,1768003832336,-70.95679721,0.00015529,2]
[401163536,1768003832352,-79.04320279,0.00015529,2]
[401163537,1768003832361,-150.0,0.00015529,2]
[401163538,1768003832371,-150.0,0.00015529,2]
[401163539,1768003832379,-124.38413666,0.00015529,2]
[401163540,1768003832391,-25.61586334,0.00015529,2]
[401163541,1768003832401,-150.0,0.0001553,2]
[401163542,1768003832410,-150.0,0.0001553,2]
[401163543,1768003832420,-500.0,0.0001555,2]
[401163544,1768003832429,-150.0,0.0001555,2]
[401163545,1768003832439,-200.0,0.0001555,2]
[401163546,1768003832448,-603.0,0.0001555,2]
[401163547,1768003832458,-150.0,0.0001555,2]
[401163548,1768003832467,-150.0,0.00015576,2]
[401163549,1768003832476,-150.0,0.00015576,2]
[401163550,1768003832487,-150.0,0.00015576,2]
[401163551,1768003832496,-150.0,0.00015576,2]
[401163552,1768003832505,-150.0,0.00015576,2]
[401163553,1768003832515,-500.0,0.00015576,2]
[401163554,1768003832524,-216.37287599,0.00015583,2]
[401163555,1768003832534,-156.19487819,0.00015583,2]
[401163556,1768003832544,-150.0,0.00015583,2]
[401163557,1768003832554,-150.0,0.00015583,2]
[401163558,1768003832563,-167.30164331,0.00015584,2]
[401163559,1768003832573,-292.17375123,0.00015584,2]
[401163560,1768003832586,-203.20327401,0.00015594,2]
[401163561,1768003832596,-8513.61910012,0.00015594,2]
[401163562,1768003832606,-644.87964393,0.00015605,2]
[401163563,1768003832616,-150.0,0.00015605,2]
[401163564,1768003832627,-603.0,0.00015605,2]
[401163565,1768003832636,-150.0,0.00015605,2]
[401163566,1768003832646,-1000.0,0.00015618,2]
[401163567,1768003832658,-150.0,0.00015631,2]
[401163568,1768003832668,-150.0,0.00015631,2]
[401163569,1768003832678,-150.0,0.00015631,2]
[401163570,1768003832689,-150.32834793,0.00015631,2]
[401163571,1768003832699,-284.45106114,0.00015631,2]
[401163572,1768003832709,-500.0,0.00015631,2]
[401163573,1768003832719,-150.0,0.00015638,2]
[401163574,1768003832729,-179.68460546,0.00015638,2]
[401163575,1768003832738,-150.0,0.00015659,2]
[401163576,1768003832748,-603.0,0.00015659,2]
[401163577,1768003832757,-150.0,0.00015659,2]
[401163578,1768003832767,-153.42906396,0.00015684,2]
[401163579,1768003832776,-150.0,0.00015686,2]
[401163580,1768003832786,-200.81420272,0.00015686,2]
[401163581,1768003832796,-150.0,0.00015686,2]
[401163582,1768003832806,-275.7864976,0.00015686,2]
[401163583,1768003832815,-250.0,0.00015693,2]
[401163584,1768003832826,-161.93162007,0.00015693,5]
[401163585,1768003832835,-500.0,0.00015693,2]
[401163586,1768003832845,-500.0,0.00015693,2]
[401163587,1768003832855,-500.0,0.00015693,2]
[401163588,1768003832865,-500.0,0.00015693,2]
[401163589,1768003832875,-629.48,0.00015693,2]
[401163590,1768003832885,-1000.0,0.00015693,2]
[401163591,1768003832894,-1000.0,0.00015694,2]
[401163592,1768003832904,-150.0,0.00015714,2]
[401163593,1768003832913,-603.0,0.00015714,2]
[401163594,1768003832923,-150.0,0.00015714,2]
[401163595,1768003832933,-151.0,0.00015718,2]
[401163596,1768003832943,-151.0,0.00015718,2]
[401163597,1768003832952,-151.0,0.00015718,2]
[401163598,1768003832962,-151.0,0.00015718,2]
[401163599,1768003832972,-150.0,0.0001574,2]
[401163600,1768003832982,-150.0,0.0001574,2]
[401163601,1768003832992,-236.78981793,0.00015769,2]
[401163602,1768003833001,-603.0,0.00015769,2]
[401163603,1768003833011,-164.0,0.00015769,2]
[401163604,1768003833021,-166.66,0.00015769,2]
[401163605,1768003833031,-150.0,0.00015795,2]
[401163606,1768003833041,-178.73,0.00015795,2]
[401163607,1768003833051,-603.0,0.00015824,2]
[401163608,1768003833061,-227.21977526,0.0001585,2]
[401163609,1768003833071,-8513.61910007,0.0001585,2]
[401163610,1768003833080,-500.0,0.00015859,2]
[401163611,1768003833091,-500.0,0.00015859,2]
[401163612,1768003833101,-500.0,0.00015859,2]
[401163613,1768003833110,-500.0,0.00015859,2]
[401163614,1768003833120,-500.0,0.00015859,2]
[401163615,1768003833131,-500.0,0.00015859,2]
[401163616,1768003833141,-500.0,0.00015859,2]
[401163617,1768003833151,-500.0,0.00015859,2]
[401163618,1768003833161,-500.0,0.00015859,2]
[401163619,1768003833171,-500.0,0.00015859,2]
[401163620,1768003833180,-500.0,0.00015859,2]
[401163621,1768003833190,-500.0,0.00015859,2]
[401163622,1768003833200,-500.0,0.00015859,2]
[401163623,1768003833210,-505.33574262,0.00015859,2]
[401163624,1768003833220,-500.0,0.00015859,2]
[401163625,1768003833230,-500.0,0.00015859,2]
[401163626,1768003833239,-500.0,0.00015859,2]
[401163627,1768003833249,-499.99999999,0.00015859,2]
[401163628,1768003833259,-500.0,0.00015859,2]
[401163629,1768003833269,-396.78458246,0.00015859,2]
[401163630,1768003833278,-500.0,0.00015859,2]
[401163631,1768003833288,-41245.85960784,0.0001586,2]
[401163632,1768003833298,-603.0,0.00015879,2]
[401163633,1768003833307,-1000.0,0.00015918,2]
[401163634,1768003833316,-1000.0,0.00015928,2]
[401163635,1768003833325,-603.0,0.00015933,2]
[401163636,1768003833335,-629.48,0.00015967,2]
[401163637,1768003833345,-603.0,0.00015988,2]
[401163638,1768003833355,-603.0,0.00016043,2]
[401163639,1768003833364,-603.0,0.00016098,2]
[401163640,1768003833374,-8513.61910007,0.00016106,2]
[401163641,1768003833384,-153.42906391,0.00016127,2]
[401163642,1768003833395,-748.48549406,0.00016152,2]
[401163643,1768003833405,-603.0,0.00016153,2]
[401163644,1768003833415,-173.26,0.0001616,2]
[401163645,1768003833425,-500.0,0.00016192,2]
[401163646,1768003833435,-603.0,0.00016207,2]
[401163647,1768003833444,-241.76,0.00016215,2]
[401163648,1768003833455,-629.48,0.00016241,2]
[401163649,1768003833786,-603.0,0.00016262,2]
[401163650,1768003833802,-500.0,0.00016273,2]
[401163651,1768003833813,-603.0,0.00016317,2]
[401163652,1768003833822,-178.11,0.00016324,2]
[401163653,1768003833831,-1000.0,0.0001634,2]
[401163654,1768003833841,-8513.61910007,0.00016363,2]
[401163655,1768003833851,-603.0,0.00016372,2]
[401163656,1768003833860,-603.0,0.00016427,2]
[401163657,1768003833870,-500.0,0.00016438,2]
[401163658,1768003833880,-512.85267365,0.00016438,2]
[401163659,1768003833890,-500.0,0.00016438,2]
[401163660,1768003833899,-500.0,0.00016438,2]
[401163661,1768003833909,-500.0,0.00016438,2]
[401163662,1768003833919,-500.0,0.00016438,2]
[401163663,1768003833929,-500.0,0.00016438,2]
[401163664,1768003833939,-500.0,0.00016438,2]
[401163665,1768003833949,-500.0,0.00016438,2]
[401163666,1768003833959,-500.0,0.00016438,2]
[401163667,1768003833969,-600.0,0.00016438,2]
[401163668,1768003833978,-603.0,0.00016481,2]
[401163669,1768003833988,-200.0,0.00016498,2]
[401163670,1768003833997,-1000.0,0.00016515,2]
[401163671,1768003834007,-629.48,0.00016515,2]
[401163672,1768003834016,-603.0,0.00016536,2]
[401163673,1768003834026,-153.42906391,0.0001657,2]
[401163674,1768003834035,-1680.0,0.00016573,2]
[401163675,1768003834044,-603.0,0.00016591,2]
[401163676,1768003834054,-5348.14437252,0.00016619,2]
[401163677,1768003834108,-572.0678,0.00016619,2]
[401163682,1768003837966,-2593.40692755,0.00016619,2]
[401163683,1768003837976,-603.0,0.00016646,2]
[401163684,1768003837988,-644.02954925,0.00016687,2]
[401163685,1768003837998,-1987.7235232,0.00016695,2]
[401163698,1768003840083,-250.0,0.00014524,2]
[401163699,1768003840093,-656.08,0.00016695,2]
[401163700,1768003840233,-4897.62119928,0.00016695,2]
[401163701,1768003840244,-603.0,0.000167,2]
[401163702,1768003840253,-618.19775946,0.00016755,2]
[401163703,1768003840263,-629.48,0.00016789,2]
[401163704,1768003840273,-1000.0,0.00016821,2]
[401163705,1768003840283,-7541.42472246,0.00016829,2]
[401163706,1768003840293,-420.0,0.00016867,2]
[401163707,1768003840303,-8513.61910007,0.00016875,2]
[401163708,1768003840313,-241.76,0.00016952,2]
[401163709,1768003840324,-7541.42472246,0.00016963,2]
[401163710,1768003840334,-152.0,0.00016963,3]
[401163711,1768003840343,-173.26,0.00016968,2]
[401163712,1768003840352,-600.0,0.00016986,2]
[401163713,1768003840362,-250.0,0.00017,2]
[401163714,1768003840372,-153.42906391,0.00017014,2]
[401163715,1768003840381,-629.48,0.00017063,2]
[401163716,1768003840391,-620.0,0.00017068,2]
[401163717,1768003840402,-1000.0,0.00017068,2]
[401163718,1768003840412,-1000.0,0.00017068,2]
[401163719,1768003840421,-1000.0,0.00017068,2]
[401163720,1768003840431,-1000.0,0.00017068,2]
[401163721,1768003840441,-1000.0,0.00017068,2]
[401163722,1768003840451,-1000.0,0.00017068,2]
[401163723,1768003840461,-1000.0,0.00017068,2]
[401163725,1768003840470,-1000.0,0.00017068,2]
[401163726,1768003840480,-1000.0,0.00017068,2]
[401163728,1768003840489,-250.0,0.00017068,2]
[401163730,1768003840499,-1000.0,0.00017068,2]
[401163731,1768003840509,-250.0,0.00017068,2]
[401163732,1768003840519,-250.0,0.00017068,2]
[401163733,1768003840528,-500.0,0.00017068,2]
[401163734,1768003840538,-1000.0,0.00017068,2]
[401163735,1768003840548,-250.0,0.00017068,2]
[401163736,1768003840557,-500.0,0.00017068,2]
[401163737,1768003840567,-1000.0,0.00017068,2]
[401163738,1768003840579,-250.0,0.00017068,2]
[401163739,1768003840589,-500.0,0.00017068,2]
[401163740,1768003840600,-250.0,0.00017068,2]
[401163741,1768003840609,-500.0,0.00017068,2]
[401163742,1768003840619,-250.0,0.00017068,2]
[401163743,1768003840629,-500.0,0.00017068,2]
[401163744,1768003840638,-250.0,0.00017068,2]
[401163745,1768003840648,-500.0,0.00017068,2]
[401163746,1768003840658,-250.0,0.00017068,2]
[401163747,1768003840667,-500.0,0.00017068,2]
[401163749,1768003840676,-500.0,0.00017068,2]
[401163751,1768003840686,-500.0,0.00017068,2]
[401163753,1768003840695,-500.0,0.00017068,2]
[401163755,1768003840705,-250.0,0.00017068,2]
[401163757,1768003840714,-500.0,0.00017068,2]
[401163758,1768003840723,-500.0,0.00017068,2]
[401163760,1768003840733,-250.0,0.00017068,2]
[401163762,1768003840742,-500.0,0.00017068,2]
[401163764,1768003840752,-500.0,0.00017068,2]
[401163766,1768003840761,-250.0,0.00017068,2]
[401163768,1768003840770,-500.0,0.00017068,2]
[401163770,1768003840780,-500.0,0.00017068,2]
[401163772,1768003840790,-500.0,0.00017068,2]
[401163774,1768003840800,-571.49862836,0.00017068,2]
[401163776,1768003840810,-500.0,0.00017068,2]
[401163778,1768003840820,-500.0,0.00017068,2]
[401163780,1768003840829,-500.0,0.00017068,2]
[401163782,1768003840838,-500.0,0.00017068,2]
[401163784,1768003840847,-553.64373807,0.00017068,2]
[401163785,1768003840857,-322.6107,0.00017068,2]
[401163786,1768003840866,-2000.0,0.00017068,2]
[401163787,1768003840876,-2000.0,0.00017068,2]
[401163788,1768003840885,-2000.0,0.00017068,2]
[401163789,1768003840895,-2000.0,0.00017068,2]
[401163790,1768003840905,-2000.0,0.00017068,2]
[401163791,1768003840915,-2000.0,0.00017068,2]
[401163792,1768003840925,-2000.0,0.00017068,2]
[401163793,1768003840934,-2000.0,0.00017068,2]
[401163794,1768003840944,-407.91279506,0.00017068,2]
[401163795,1768003840953,-500.0,0.00017075,2]
[401163796,1768003840963,-1000.0,0.00017079,2]
[401163797,1768003840972,-7541.42472246,0.00017097,2]
[401163798,1768003840981,-30000.0,0.000171,2]
[401163799,1768003840990,-185.46,0.00017102,2]
[401163800,1768003840999,-502.0,0.00017105,2]
[401163801,1768003841010,-1000.0,0.00017112,2]
[401163802,1768003841020,-8513.61910007,0.00017131,2]
[401163803,1768003841029,-159.10718444,0.00017152,2]
[401163804,1768003841039,-7541.42472246,0.00017231,2]
[401163805,1768003841048,-629.48,0.00017337,2]
[401163806,1768003841057,-7541.42472246,0.00017364,2]
[401163807,1768003841067,-1500.0,0.00017368,2]
[401163808,1768003841077,-1479.59136758,0.00017378,2]
[401163809,1768003841086,-2406.86260657,0.00017378,2]
[401163810,1768003841096,-3399.20834001,0.00017378,2]
[401163811,1768003841105,-4398.5007,0.00017378,2]
[401163812,1768003841115,-8513.61910007,0.00017388,2]
[401163813,1768003841124,-153.42906391,0.00017457,2]
[401163814,1768003841133,-7541.42472246,0.00017498,2]
[401163815,1768003841143,-2000.0,0.000175,2]
[401163816,1768003841152,-600.0,0.00017534,2]
[401163817,1768003841161,-1000.0,0.00017603,2]
[401163818,1768003841170,-502.0,0.00017608,2]
[401163819,1768003841180,-629.52,0.00017611,2]
[401163820,1768003841190,-574.12855637,0.00017616,2]
[401163821,1768003841199,-282.0,0.00017628,2]
[401163822,1768003841209,-7541.42472246,0.00017632,2]
[401163823,1768003841218,-7656.97122123,0.0001764,2]
[401163824,1768003841227,-8513.61910007,0.00017644,2]
[401163825,1768003841237,-438.60812647,0.00017675,2]
[401163826,1768003841247,-438.60812647,0.00017675,2]
[401163827,1768003841257,-241.76,0.00017689,2]
[401163828,1768003841266,-1000.0,0.000177,2]
[401163829,1768003841276,-438.60812643,0.00017707,2]
[401163830,1768003841286,-438.60812643,0.00017707,2]
[401163831,1768003841295,-1000.0,0.00017709,2]
[401163832,1768003841305,-275.58,0.00017716,2]
[401163833,1768003841315,-150.0,0.00017726,2]
[401163834,1768003841326,-1647.215,0.00017726,2]
[401163835,1768003841335,-180.8080678,0.00017726,2]
[401163836,1768003841344,-6709.59935273,0.0001773,2]
[401163837,1768003841353,-438.60812643,0.00017739,2]
[401163838,1768003841363,-7541.42472246,0.00017766,2]
[401163839,1768003841373,-438.60812643,0.00017771,2]
[401163840,1768003841383,-282.0,0.00017775,2]
[401163841,1768003841392,-173.26,0.00017776,2]
[401163842,1768003841402,-1000.0,0.000178,2]
[401163843,1768003841411,-438.60812643,0.00017804,2]
[401163844,1768003841420,-500.0,0.00017808,2]
[401163845,1768003841429,-151.0,0.00017808,2]
[401163846,1768003841439,-200.35779431,0.00017808,2]
[401163847,1768003841448,-10000.0,0.0001782,2]
[401163848,1768003841457,-10000.0,0.0001782,2]
[401163849,1768003841467,-10000.0,0.0001782,2]
[401163850,1768003841477,-10000.0,0.0001782,2]
[401163851,1768003841486,-22119.43413187,0.0001783,2]
[401163852,1768003841496,-428.97,0.00017844,2]
[401163853,1768003841507,-200.0,0.00017855,2]
[401163854,1768003841517,-200.0,0.00017856,2]
[401163855,1768003841527,-200.0,0.00017856,2]
[401163856,1768003841536,-500.7022131,0.00017863,2]
[401163857,1768003841546,-161.78,0.00017885,2]
[401163858,1768003841556,-500.0,0.0001789,2]
[401163859,1768003841565,-25000.0,0.00017891,3]
[401163860,1768003841577,-500.0,0.00017899,2]
[401163861,1768003841586,-282.0,0.000179,2]
[401163862,1768003841599,-153.42906391,0.000179,2]
[401163863,1768003841609,-10000.0,0.000179,2]
[401163864,1768003841618,-1738.1903,0.000179,2]
[401163865,1768003841627,-1000.0,0.000179,2]
[401163866,1768003841639,-1000.0,0.000179,2]
[401163867,1768003841648,-380.089,0.000179,2]
[401163868,1768003841658,-25000.0,0.000179,3]
[401163869,1768003841669,-6021.86823211,0.000179,3]
[401163870,1768003841679,-666.08677066,0.000179,2]
[401163871,1768003841688,-1438.65953157,0.000179,2]
[401163872,1768003841697,-1438.65953157,0.000179,2]
[401163873,1768003841707,-1438.65953157,0.000179,2]
[401163874,1768003841717,-8513.61910007,0.000179,2]
[401163875,1768003841727,-1438.65953157,0.000179,2]
[401163876,1768003841736,-1000.0,0.000179,2]
[401163877,1768003842046,-1438.65953157,0.000179,2]
[401163878,1768003842056,-1438.65953157,0.000179,2]
[401163879,1768003842066,-1438.65953157,0.000179,2]
[401163880,1768003842077,-1438.65953157,0.000179,2]
[401163881,1768003842086,-1438.65953157,0.000179,2]
[401163882,1768003842096,-1438.65953157,0.000179,2]
[401163883,1768003842106,-1438.65953157,0.000179,2]
[401163884,1768003842115,-1438.65953157,0.000179,2]
[401163885,1768003842125,-1438.65953157,0.000179,2]
[401163886,1768003842134,-1438.65953157,0.000179,2]
[401163887,1768003842144,-1438.65953157,0.000179,2]
[401163888,1768003842153,-1438.65953157,0.000179,2]
[401163889,1768003842162,-5055.06085975,0.000179,2]
[401163890,1768003842171,-5419.66632669,0.000179,2]
[401163891,1768003842180,-7541.42472246,0.000179,2]
[401163892,1768003842190,-356.69814299,0.000179,3]
[401163893,1768003842200,-500.0,0.000179,2]
[401163894,1768003842209,-500.0,0.000179,2]
[401163895,1768003842220,-500.0,0.000179,2]
[401163896,1768003842229,-500.0,0.000179,2]
[401163897,1768003842238,-500.0,0.000179,2]
[401163898,1768003842248,-500.0,0.000179,2]
[401163899,1768003842257,-500.0,0.000179,2]
[401163900,1768003842267,-500.0,0.000179,2]
[401163901,1768003842276,-500.0,0.000179,2]
[401163902,1768003842285,-500.0,0.000179,2]
[401163903,1768003842295,-500.0,0.000179,2]
[401163904,1768003842305,-500.0,0.000179,2]
[401163905,1768003842314,-500.0,0.000179,2]
[401163906,1768003842324,-500.0,0.000179,2]
[401163907,1768003842334,-500.0,0.000179,2]
[401163908,1768003842343,-500.0,0.000179,2]
[401163909,1768003842352,-500.0,0.000179,2]
[401163910,1768003842363,-500.0,0.000179,2]
[401163911,1768003842372,-500.0,0.000179,2]
[401163912,1768003842382,-500.0,0.000179,2]
[401163913,1768003842391,-500.0,0.000179,2]
[401163914,1768003842400,-500.0,0.000179,2]
[401163915,1768003842410,-500.0,0.000179,2]
[401163916,1768003842419,-500.0,0.000179,2]
[401163917,1768003842430,-500.0,0.000179,2]
[401163918,1768003842439,-500.0,0.000179,2]
[401163919,1768003842448,-500.0,0.000179,2]
[401163920,1768003842458,-500.0,0.000179,2]
[401163921,1768003842467,-500.0,0.000179,2]
[401163922,1768003842476,-500.0,0.000179,2]
[401163923,1768003842485,-500.0,0.000179,2]
[401163924,1768003842495,-324.05870169,0.000179,2]
[401163925,1768003842505,-5720.0,0.000179,2]
[401163926,1768003842514,-151.0,0.00017904,2]
[401163927,1768003842524,-152.0,0.00017956,4]
[401163928,1768003842533,-1000.0,0.00017957,2]
[401163929,1768003842542,-500.0,0.00017973,2]
[401163930,1768003842552,-500.0,0.00017973,2]
[401163931,1768003842561,-500.0,0.00017973,2]
[401163932,1768003842570,-190.88377587,0.00017973,2]
[401163933,1768003842579,-500.94146496,0.00017973,2]
[401163934,1768003842589,-500.0,0.00017973,2]
[401163935,1768003842601,-500.0,0.00017973,2]
[401163936,1768003842611,-500.0,0.00017973,2]
[401163937,1768003842620,-500.0,0.00017973,2]
[401163938,1768003842630,-500.0,0.00017973,2]
[401163939,1768003842639,-500.0,0.00017973,2]
[401163940,1768003842648,-500.0,0.00017973,2]
[401163942,1768003842657,-500.0,0.00017973,2]
[401163943,1768003842667,-500.0,0.00017973,2]
[401163944,1768003842676,-500.0,0.00017973,2]
[401163945,1768003842685,-500.0,0.00017973,2]
[401163946,1768003842696,-500.0,0.00017973,2]
[401163947,1768003842706,-500.0,0.00017973,2]
[401163948,1768003842715,-150.18655509,0.00017973,2]
[401163949,1768003842726,-500.0,0.00017973,2]
[401163950,1768003842735,-609.94892981,0.00017973,2]
[401163951,1768003842744,-500.0,0.00017973,2]
[401163952,1768003842754,-500.0,0.00017973,2]
[401163953,1768003842763,-500.0,0.00017973,2]
[401163954,1768003842773,-500.0,0.00017973,2]
[401163955,1768003842783,-500.0,0.00017973,2]
[401163956,1768003842793,-260.76514571,0.00017973,2]
[401163957,1768003842802,-300.14354491,0.00017973,2]
[401163958,1768003842811,-433.25363423,0.00017973,2]
[401163959,1768003842821,-500.0,0.00017973,2]
[401163960,1768003842831,-500.0,0.00017973,2]
[401163961,1768003842841,-500.0,0.00017973,2]
[401163962,1768003842851,-500.0,0.00017973,2]
[401163963,1768003842860,-500.0,0.00017973,2]
[401163964,1768003842869,-500.0,0.00017973,2]
[401163965,1768003842881,-500.0,0.00017973,2]
[401163966,1768003842891,-500.0,0.00017973,2]
[401163967,1768003842901,-500.0,0.00017973,2]
[401163968,1768003842911,-500.0,0.00017973,2]
[401163969,1768003842921,-500.0,0.00017973,2]
[401163970,1768003842931,-500.0,0.00017973,2]
[401163971,1768003842940,-587.72916305,0.00017973,2]
[401163972,1768003842949,-500.0,0.00017973,2]
[401163973,1768003842959,-500.0,0.00017973,2]
[401163974,1768003842969,-571.18523256,0.00017973,2]
[401163975,1768003842978,-150.0,0.00017973,2]
[401163976,1768003842987,-150.0,0.00017973,2]
[401163977,1768003842997,-21000.0,0.0001799,2]
[401163978,1768003843007,-282.0930968,0.0001799,2]
[401163979,1768003843016,-282.0930968,0.0001799,2]
[401163980,1768003843027,-282.0930968,0.0001799,2]
[401163981,1768003843036,-282.0,0.00017991,2]
[401163982,1768003843046,-500.0,0.00017998,2]
[401163983,1768003843056,-161.8167014,0.00017999,2]
[401163984,1768003843065,-9131.058086,0.00017999,2]
[401163985,1768003843075,-138205.6530196,0.00017999,2]
[401163986,1768003843085,-13952.171441,0.00017999,2]
[401163987,1768003843095,-300.0,0.00017999,2]
[401163988,1768003843105,-500.0,0.00017999,2]
[401163989,1768003843115,-500.0,0.00017999,2]
[401163990,1768003843124,-321.85851859,0.00017999,2]
[401163991,1768003843134,-3163.6549611,0.00017999,2]
[401163992,1768003843143,-300.0,0.00017999,2]
[401163993,1768003843153,-2445.8191301,0.00017999,2]
[401163994,1768003843163,-300.0,0.00017999,2]
[401163995,1768003843172,-300.0,0.00017999,2]
[401163996,1768003843181,-150.0,0.00017999,2]
[401163997,1768003843191,-666.0,0.00017999,2]
[401163998,1768003843200,-731738.05506953,0.00018,2]
[401163999,1768003843210,-648788.10201013,0.00018,2]
[401164000,1768003843219,-814625.80317262,0.00018,2]
[401164001,1768003843228,-5000.0,0.00018,2]
[401164002,1768003843238,-171864.9892021,0.00018,2]
[401164004,1768003845832,-411.28308171,0.000179,2]
[401164005,1768003845842,-1771.84119594,0.00018,2]
[401164012,1768005011087,5000.0,0.000202,30]
[401164031,1768005033257,-212.74395336,0.000135,2]
[401164032,1768005033267,-250.0,0.00014285,2]
[401164033,1768005033277,-250.0,0.0001477,2]
[401164034,1768005033287,-250.0,0.0001485,2]
[401164035,1768005033296,-193.0,0.0001485,2]
[401164036,1768005033306,-1000.0,0.00015071,2]
[401164037,1768005033315,-171.39155949,0.00015079,2]
[401164038,1768005033325,-1848.34,0.00015184,2]
[401164039,1768005033334,-171.39155949,0.0001531,2]